bitfinex/quotes_BTCUSD_20230114
["timestamp","ask_amount","ask_price","bid_price","bid_amount"]
[1673674609872,1.005232,20850.0,20849.0,0.2675821]
[1673674610365,1.005232,20850.0,20849.0,0.04984592]
[1673674610619,1.005232,20850.0,20849.0,0.01167203]
[1673674611624,1.305232,20850.0,20849.0,0.01167203]
[1673674611868,1.305232,20850.0,20849.0,0.00271703]
[1673674612612,1.305232,20850.0,20849.0,0.06549703]
[1673674612864,1.005232,20850.0,20849.0,0.1733927]
[1673674613103,1.005232,20850.0,20849.0,0.19149917]
[1673674613343,0.28604261,20850.0,20849.0,0.51271217]
[1673674613595,0.046,20850.0,20849.0,0.3420365]
[1673674614090,0.479593,20851.0,20850.0,0.182013]
[1673674614335,0.479593,20851.0,20850.0,0.08355915]
[1673674614843,0.479593,20851.0,20850.0,0.08458825]
[1673674615374,0.479593,20851.0,20850.0,0.25657193]
[1673674616122,0.486593,20851.0,20850.0,0.36057193]
[1673674618083,0.007,20851.0,20850.0,0.36057193]
[1673674619779,0.46657,20852.0,20851.0,0.1]
[1673674620015,0.46657,20852.0,20851.0,0.2364209]
[1673674621225,0.47257,20852.0,20851.0,0.3364209]
[1673674621991,0.006,20852.0,20851.0,0.33050514]
[1673674622235,0.006,20852.0,20851.0,0.59009219]
[1673674622477,0.006,20852.0,20851.0,0.69009219]
[1673674622737,0.006,20852.0,20851.0,0.59009219]
[1673674622992,0.00363693,20852.0,20851.0,0.59009219]
[1673674623279,0.00363693,20852.0,20851.0,0.69009219]
[1673674623770,0.00363693,20852.0,20851.0,0.7728177]
[1673674624521,0.00363693,20852.0,20851.0,0.59009219]
[1673674625003,0.00363693,20852.0,20851.0,0.76172361]
[1673674625492,0.00363693,20852.0,20851.0,0.79094049]
[1673674625749,0.00363693,20852.0,20851.0,0.99481503]
[1673674626240,0.26697564,20854.0,20852.0,0.16284296]
[1673674626499,0.26697564,20854.0,20853.0,0.18195]
[1673674626741,0.26697564,20854.0,20853.0,0.09175467]
[1673674626976,0.26697564,20854.0,20853.0,0.41296767]
[1673674627229,0.26697564,20854.0,20853.0,0.09175467]
[1673674627733,0.05,20854.0,20853.0,0.09575467]
[1673674629409,0.52781397,20854.0,20853.0,0.09575467]
[1673674629640,1.00733797,20854.0,20853.0,0.004]
[1673674629875,0.70733797,20854.0,20853.0,0.004]
[1673674630596,0.529524,20854.0,20853.0,0.06678]
[1673674630843,0.05,20854.0,20853.0,0.23978862]
[1673674631095,0.05,20854.0,20853.0,0.75500316]
[1673674632347,0.479501,20856.0,20853.0,0.75700316]
[1673674632599,0.479501,20856.0,20854.0,0.181905]
[1673674632849,0.479501,20856.0,20853.0,0.37301016]
[1673674633125,0.479501,20856.0,20854.0,0.05162522]
[1673674633859,0.479501,20856.0,20854.0,0.20320182]
[1673674636038,0.526501,20856.0,20854.0,0.20720182]
[1673674636799,0.71996015,20856.0,20854.0,0.05562522]
[1673674637055,0.49409671,20855.0,20854.0,0.004]
[1673674637303,1.58617471,20855.0,20854.0,0.004]
[1673674638609,1.392078,20855.0,20854.0,0.004]
[1673674638853,1.392078,20855.0,20849.0,0.17922512]
[1673674639102,1.406002,20855.0,20854.0,0.004]
[1673674639338,1.18407099,20855.0,20854.0,0.004]
[1673674639599,1.21714699,20855.0,20854.0,0.004]
[1673674639837,0.1,20853.0,20850.0,0.11845971]
[1673674640140,0.95914,20852.0,20851.0,0.02976848]
[1673674641399,1.25914,20852.0,20851.0,0.02976848]
[1673674641900,1.25914,20852.0,20850.0,0.26446697]
[1673674642162,0.3,20851.0,20850.0,0.26427697]
[1673674642407,1.259186,20851.0,20850.0,0.11845971]
[1673674642649,1.259186,20851.0,20849.0,0.17528514]
[1673674643379,1.263186,20851.0,20850.0,0.139]
[1673674643858,1.267186,20851.0,20850.0,0.139]
[1673674644350,0.008,20851.0,20850.0,0.139]
[1673674644616,0.008,20851.0,20850.0,0.74388078]
[1673674644907,0.00019,20854.0,20850.0,1.38097602]
[1673674645157,0.00019,20854.0,20851.0,0.45432573]
[1673674645411,0.00019,20854.0,20852.0,0.321178]
[1673674645673,0.00019,20854.0,20853.0,0.45380673]
[1673674645921,0.14218241,20857.0,20853.0,0.74671333]
[1673674646164,0.14218241,20857.0,20854.0,0.51187195]
[1673674646416,0.14218241,20857.0,20855.0,0.181944]
[1673674646692,0.14218241,20857.0,20856.0,0.35848]
[1673674646961,0.14218241,20857.0,20856.0,0.037267]
[1673674646962,0.17488745,20857.0,20856.0,0.037267]
[1673674647203,0.18772413,20857.0,20854.0,0.19241718]
[1673674647460,0.15464813,20857.0,20855.0,0.15064012]
[1673674647724,0.45464813,20857.0,20855.0,0.15064012]
[1673674647967,0.45464813,20857.0,20856.0,0.01506401]
[1673674648450,0.50003813,20857.0,20856.0,0.01506401]
[1673674648955,0.97949313,20857.0,20856.0,0.01506401]
[1673674649200,0.93349313,20857.0,20856.0,0.01506401]
[1673674649451,0.93349313,20857.0,20856.0,0.02606401]
[1673674649452,0.97949313,20857.0,20856.0,0.02606401]
[1673674649697,0.825455,20857.0,20856.0,0.18167332]
[1673674651220,0.046,20857.0,20856.0,0.18167332]
[1673674651712,0.046,20857.0,20856.0,0.64612605]
[1673674651953,0.30830552,20859.0,20857.0,0.1]
[1673674652186,0.30830552,20859.0,20858.0,0.28377443]
[1673674653449,0.30830552,20859.0,20858.0,0.18767551]
[1673674653947,0.01154776,20860.0,20858.0,0.18767551]
[1673674654188,0.01154776,20860.0,20859.0,0.321213]
[1673674654414,0.01154776,20860.0,20859.0,0.46445273]
[1673674654675,0.01154776,20860.0,20859.0,1.43659063]
[1673674654900,0.01154776,20860.0,20859.0,1.62051917]
[1673674655150,0.01154776,20860.0,20859.0,1.77392051]
[1673674655392,0.00768193,20862.0,20860.0,0.17661894]
[1673674655666,0.00768193,20862.0,20861.0,0.181735]
[1673674655896,0.00768193,20862.0,20861.0,0.36301459]
[1673674656660,0.00768193,20862.0,20861.0,0.18127959]
[1673674657639,0.45308244,20862.0,20860.0,0.17028667]
[1673674657877,0.30768193,20862.0,20861.0,0.139]
[1673674658374,0.00768193,20862.0,20861.0,0.139]
[1673674658622,0.00768193,20862.0,20861.0,0.36087827]
[1673674659323,0.00768193,20862.0,20861.0,0.50521085]
[1673674659553,0.00768193,20862.0,20861.0,0.67759123]
[1673674659782,0.00768193,20862.0,20861.0,0.77765123]
[1673674660000,0.00768193,20862.0,20861.0,0.87410106]
[1673674660489,0.00768193,20862.0,20861.0,1.35346406]
[1673674660781,0.00768193,20862.0,20861.0,1.56832717]
[1673674661026,0.00768193,20862.0,20861.0,1.08896417]
[1673674661250,0.00768193,20862.0,20861.0,0.74921032]
[1673674661479,0.00768193,20862.0,20861.0,1.51521439]
[1673674661708,0.00768193,20862.0,20861.0,2.07437296]
[1673674662168,0.00768193,20862.0,20861.0,2.32201403]
[1673674662404,0.00768193,20862.0,20861.0,2.72335261]
[1673674662645,0.00768193,20862.0,20861.0,2.92351288]
[1673674662907,0.00768193,20862.0,20861.0,10.92351288]
[1673674663423,0.01283954,20863.0,20861.0,10.92351288]
[1673674663424,0.01247209,20864.0,20863.0,0.1]
[1673674663653,0.01247209,20864.0,20863.0,2.44133113]
[1673674663876,6e-05,20865.0,20864.0,0.1]
[1673674664117,6e-05,20865.0,20864.0,2.70985907]
[1673674664345,6e-05,20865.0,20864.0,6.89382913]
[1673674664593,0.01304395,20866.0,20864.0,9.89382827]
[1673674664839,0.01304395,20866.0,20865.0,0.77719564]
[1673674665105,0.01304395,20866.0,20865.0,1.87368091]
[1673674665324,0.479176,20870.0,20866.0,0.1]
[1673674665325,0.57319052,20870.0,20866.0,0.1]
[1673674665556,0.57319052,20870.0,20867.0,0.21419715]
[1673674665785,0.57319052,20870.0,20867.0,0.4049231]
[1673674666255,0.15180769,20870.0,20867.0,0.4049231]
[1673674666479,0.45180769,20870.0,20867.0,0.21419715]
[1673674666732,0.15180769,20870.0,20868.0,0.12374781]
[1673674666977,0.45180769,20870.0,20868.0,0.12374781]
[1673674667432,0.45180769,20870.0,20869.0,0.06380817]
[1673674668111,0.65617191,20872.0,20869.0,0.23262413]
[1673674668559,0.15,20871.0,20869.0,0.23262413]
[1673674668790,0.64311595,20871.0,20870.0,0.03563719]
[1673674669281,0.45,20871.0,20870.0,0.03563719]
[1673674669529,0.15,20871.0,20870.0,0.03563719]
[1673674669731,0.49284384,20872.0,20870.0,0.03563719]
[1673674669732,0.01371384,20872.0,20870.0,0.13563719]
[1673674669978,0.01371384,20872.0,20871.0,0.05874813]
[1673674671227,0.01371384,20872.0,20871.0,0.23596474]
[1673674671470,0.01371384,20872.0,20871.0,0.69606274]
[1673674671719,0.01371384,20872.0,20871.0,0.37496474]
[1673674671966,0.479128,20874.0,20872.0,0.00020858]
[1673674671967,0.94974895,20874.0,20872.0,0.00020858]
[1673674672219,0.94974895,20874.0,20872.0,0.04128963]
[1673674672470,0.92882573,20874.0,20872.0,0.04128963]
[1673674672706,0.3,20873.0,20872.0,0.04128963]
[1673674673701,0.3,20873.0,20872.0,0.17151]
[1673674673943,0.3,20873.0,20872.0,0.17130142]
[1673674674196,0.779087,20873.0,20872.0,0.31151]
[1673674674425,0.779087,20873.0,20872.0,0.17151]
[1673674674670,1.67697713,20873.0,20872.0,0.14]
[1673674674911,1.67697713,20873.0,20872.0,0.10614067]
[1673674674912,1.70108776,20873.0,20872.0,0.10614067]
[1673674675161,1.70108776,20873.0,20872.0,0.10620067]
[1673674675694,1.75112799,20873.0,20872.0,0.10620067]
[1673674676190,1.75112799,20873.0,20872.0,6e-05]
[1673674676436,0.1,20872.0,20865.0,0.14526751]
[1673674676674,0.1291,20867.0,20866.0,0.01452675]
[1673674676921,1.904869,20867.0,20866.0,0.01452675]
[1673674677154,1.904869,20867.0,20862.0,0.16053137]
[1673674677155,1.866775,20867.0,20862.0,0.0175881]
[1673674677395,0.129,20864.0,20862.0,0.20242356]
[1673674677644,0.608299,20864.0,20863.0,0.17541588]
[1673674677892,1.258593,20864.0,20863.0,0.03024236]
[1673674678138,1.158593,20864.0,20862.0,0.0175881]
[1673674678365,1.021937,20864.0,20862.0,0.0175881]
[1673674678612,0.542643,20864.0,20862.0,0.0175881]
[1673674678869,0.542643,20864.0,20862.0,0.08367427]
[1673674679127,0.542643,20864.0,20863.0,0.15759827]
[1673674679128,0.242643,20864.0,20863.0,0.15759827]
[1673674679364,0.248643,20864.0,20863.0,0.19259827]
[1673674679615,0.006,20864.0,20863.0,0.19259827]
[1673674679851,0.006,20864.0,20863.0,0.32038302]
[1673674680104,0.006,20864.0,20863.0,0.28038302]
[1673674680346,0.3,20864.0,20863.0,0.28038302]
[1673674680584,0.012,20864.0,20863.0,0.28038302]
[1673674681104,0.017,20864.0,20863.0,0.31438302]
[1673674681587,0.479278,20865.0,20863.0,0.42332629]
[1673674681826,0.479278,20865.0,20864.0,0.10073309]
[1673674682067,0.479269,20866.0,20864.0,0.24367636]
[1673674682311,0.67500137,20866.0,20864.0,0.24367636]
[1673674682562,1.15424937,20866.0,20864.0,0.10073309]
[1673674682801,0.958517,20866.0,20865.0,0.07675729]
[1673674683041,0.95615552,20866.0,20865.0,0.07675729]
[1673674683665,1.29424952,20866.0,20864.0,0.15638706]
[1673674683828,0.338094,20865.0,20864.0,0.34433033]
[1673674684085,0.3,20865.0,20864.0,0.29933033]
[1673674684326,1.4512544,20865.0,20864.0,0.13033348]
[1673674684558,0.1,20864.0,20862.0,0.0175881]
[1673674684807,1.058634,20863.0,20862.0,0.0175881]
[1673674685048,1.396728,20863.0,20862.0,0.07037451]
[1673674685285,1.358634,20863.0,20862.0,0.07037451]
[1673674685525,1.525828,20863.0,20862.0,0.0175881]
[1673674687046,1.539828,20863.0,20862.0,0.0625881]
[1673674687309,1.73192099,20863.0,20862.0,0.0625881]
[1673674688299,1.745938,20863.0,20862.0,0.0625881]
[1673674689314,1.93480241,20863.0,20862.0,0.0625881]
[1673674689582,1.93480241,20863.0,20862.0,0.06884691]
[1673674690067,1.32869241,20863.0,20862.0,0.06884691]
[1673674690813,0.014,20863.0,20862.0,0.56978112]
[1673674691059,0.014,20863.0,20862.0,1.05754022]
[1673674691563,0.43363316,20866.0,20863.0,0.1]
[1673674691823,0.43363316,20866.0,20864.0,0.30692743]
[1673674692071,0.00013,20866.0,20864.0,0.46390509]
[1673674692324,0.00013,20866.0,20865.0,0.65779886]
[1673674692569,0.05013,20867.0,20865.0,0.33670086]
[1673674692826,0.61708702,20869.0,20866.0,0.09672751]
[1673674693079,0.61708702,20869.0,20866.0,0.28745346]
[1673674693582,0.61708702,20869.0,20866.0,0.23976522]
[1673674693835,1.09626602,20869.0,20866.0,0.23976522]
[1673674694088,1.09626602,20869.0,20866.0,0.49529497]
[1673674694331,1.09626602,20869.0,20867.0,0.09748612]
[1673674694573,1.09626602,20869.0,20867.0,0.29525904]
[1673674695074,0.479179,20869.0,20867.0,0.29525904]
[1673674695325,0.479179,20869.0,20868.0,0.14378654]
[1673674695579,0.3,20869.0,20868.0,0.14378654]
[1673674695832,0.479175,20870.0,20868.0,0.24193361]
[1673674696084,0.01423326,20871.0,20869.0,0.14303771]
[1673674696339,0.01423326,20871.0,20869.0,0.33376366]
[1673674696843,0.01423326,20871.0,20870.0,0.82153079]
[1673674697104,0.01423326,20871.0,20870.0,2.22451938]
[1673674697346,0.01423326,20871.0,20870.0,3.08569998]
[1673674697592,3.326e-05,20871.0,20870.0,2.73126169]
[1673674697831,0.01511858,20872.0,20871.0,0.17218172]
[1673674698079,0.01511858,20872.0,20871.0,2.04901718]
[1673674698329,0.49777796,20878.0,20871.0,2.33537064]
[1673674698588,0.01371384,20878.0,20874.0,0.14299156]
[1673674698853,0.01371384,20878.0,20875.0,1.08374957]
[1673674699104,0.01371384,20878.0,20877.0,0.3574789]
[1673674699360,0.01371384,20878.0,20877.0,1.09677045]
[1673674699615,0.01879216,20881.0,20877.0,1.36886202]
[1673674699616,0.01371384,20881.0,20877.0,1.36886202]
[1673674699900,0.00335183,20884.0,20879.0,0.42885807]
[1673674700127,0.07199953,20887.0,20881.0,0.1291]
[1673674700404,0.07199478,20887.0,20882.0,1.68855192]
[1673674700647,0.07199478,20887.0,20883.0,0.72652948]
[1673674700648,0.06699953,20887.0,20883.0,0.72652948]
[1673674700905,0.00220342,20888.0,20884.0,0.81222707]
[1673674701170,0.00220342,20888.0,20885.0,0.76119197]
[1673674701427,0.00220342,20888.0,20886.0,0.320829]
[1673674701684,0.00220342,20888.0,20882.0,1.45641039]
[1673674701685,0.2575,20886.0,20882.0,0.28512084]
[1673674701956,2.08029918,20870.0,20866.0,17.18884609]
[1673674702227,0.17674,20872.0,20867.0,0.47410217]
[1673674702516,0.17674,20876.0,20867.0,0.47410217]
[1673674702517,0.00019,20871.0,20867.0,12.47410217]
[1673674702777,0.00019,20871.0,20868.0,0.47410217]
[1673674703021,0.50420209,20876.0,20869.0,0.47720169]
[1673674703022,0.15,20876.0,20869.0,0.47720169]
[1673674703275,0.15,20876.0,20870.0,0.66792764]
[1673674703538,0.15,20876.0,20869.0,0.9815]
[1673674703539,0.00176476,20876.0,20871.0,0.66792764]
[1673674703811,0.00176476,20876.0,20872.0,0.47720169]
[1673674703812,0.1289,20875.0,20872.0,0.47720169]
[1673674704058,0.1281,20874.0,20872.0,3.57720169]
[1673674704579,0.1291,20875.0,20873.0,0.1]
[1673674704839,0.2935402,20876.0,20874.0,0.19094886]
[1673674705099,0.2784,20877.0,20874.0,0.19094886]
[1673674705100,0.129,20875.0,20874.0,0.19094886]
[1673674705851,0.2581,20875.0,20874.0,0.19094886]
[1673674706107,0.579103,20875.0,20869.0,1.0815]
[1673674706348,0.579103,20875.0,20874.0,0.14791961]
[1673674706349,0.3,20875.0,20874.0,0.14791961]
[1673674706600,0.5137,20875.0,20874.0,0.14791961]
[1673674706848,0.5137,20875.0,20874.0,0.14521406]
[1673674707094,0.29580993,20877.0,20874.0,0.68244905]
[1673674707335,0.01740993,20877.0,20875.0,0.19072595]
[1673674707575,0.01740993,20877.0,20876.0,0.54544659]
[1673674709338,0.01740993,20877.0,20876.0,0.64544659]
[1673674709579,0.01740993,20877.0,20876.0,0.0682449]
[1673674710074,0.01740993,20877.0,20876.0,0.21968078]
[1673674710574,0.01240993,20877.0,20876.0,0.21968078]
[1673674711069,0.27010993,20877.0,20874.0,0.01452141]
[1673674711343,0.27010993,20877.0,20873.0,0.16023476]
[1673674711344,0.0915,20875.0,20873.0,0.16023476]
[1673674711590,1.449036,20876.0,20874.0,0.15614137]
[1673674711835,1.449036,20876.0,20875.0,0.01561414]
[1673674712085,2.028239,20876.0,20875.0,0.01561414]
[1673674712837,2.03303873,20876.0,20870.0,1.2145]
[1673674713084,0.129,20873.0,20872.0,0.16635698]
[1673674713333,0.908087,20873.0,20872.0,0.16635698]
[1673674713581,0.908087,20873.0,20870.0,1.2145]
[1673674713838,0.907987,20873.0,20872.0,0.14925276]
[1673674714091,0.607987,20873.0,20872.0,0.14925276]
[1673674714340,0.607987,20873.0,20871.0,0.12145]
[1673674714590,0.607175,20874.0,20871.0,0.12145]
[1673674714845,0.608118,20876.0,20872.0,0.47720169]
[1673674715107,0.608118,20876.0,20875.0,0.18913553]
[1673674715347,0.01240993,20877.0,20875.0,0.66792764]
[1673674715896,0.01240993,20877.0,20875.0,0.47720169]
[1673674716393,0.01240993,20877.0,20876.0,0.47720169]
[1673674717145,0.01240993,20877.0,20876.0,0.57720169]
[1673674717426,9.93e-06,20877.0,20876.0,0.57720169]
[1673674717641,0.01553441,20880.0,20876.0,5.05621969]
[1673674717889,0.01553441,20880.0,20877.0,0.47720169]
[1673674718151,0.51873998,20882.0,20878.0,0.95130386]
[1673674718403,0.51873998,20882.0,20879.0,0.19072595]
[1673674719126,0.51873998,20882.0,20879.0,0.47720169]
[1673674719379,0.03984398,20882.0,20879.0,0.47720169]
[1673674719617,0.01553441,20884.0,20880.0,0.76305803]
[1673674719900,0.01553441,20884.0,20881.0,0.66792764]
[1673674720138,0.01553441,20884.0,20882.0,0.1]
[1673674720391,0.01553441,20884.0,20881.0,0.66792764]
[1673674720392,0.01553441,20884.0,20883.0,0.16897701]
[1673674721625,0.01553441,20884.0,20881.0,1.48384475]
[1673674721626,0.00495546,20883.0,20881.0,0.14]
[1673674721879,0.957762,20882.0,20881.0,0.14]
[1673674722104,0.957762,20882.0,20880.0,0.09513039]
[1673674722345,0.749203,20881.0,20879.0,0.19608584]
[1673674722595,1.497057,20880.0,20879.0,0.00019]
[1673674722847,1.533757,20880.0,20879.0,0.18102512]
[1673674723079,1.833757,20880.0,20879.0,0.00019]
[1673674723326,1.51774614,20880.0,20879.0,0.139]
[1673674723574,1.51774614,20880.0,20876.0,0.18661363]
[1673674723805,0.1281,20878.0,20876.0,0.18661363]
[1673674724070,0.607076,20878.0,20876.0,0.18661363]
[1673674724555,0.607076,20878.0,20877.0,0.16634672]
[1673674724793,0.607076,20878.0,20877.0,0.18298139]
[1673674725060,1.086049,20878.0,20877.0,0.01663467]
[1673674725341,1.386049,20878.0,20877.0,0.01663467]
[1673674725602,1.386049,20878.0,20877.0,0.15563467]
[1673674725863,1.514249,20878.0,20877.0,0.139]
[1673674726103,1.835252,20878.0,20877.0,0.139]
[1673674726358,2.026252,20878.0,20877.0,0.139]
[1673674726627,2.021252,20878.0,20877.0,0.139]
[1673674726855,2.021252,20878.0,20873.0,0.00019]
[1673674727095,0.2554,20874.0,20873.0,0.16737228]
[1673674727387,1.992592,20874.0,20873.0,0.18410951]
[1673674727631,0.479059,20875.0,20874.0,0.15651158]
[1673674728121,0.479059,20875.0,20873.0,0.01673723]
[1673674728372,0.479059,20875.0,20873.0,0.19309525]
[1673674728896,0.607439,20876.0,20874.0,0.19409482]
[1673674729376,0.607439,20876.0,20874.0,0.23909482]
[1673674729624,0.607439,20876.0,20874.0,0.19409482]
[1673674729868,0.1284,20876.0,20874.0,0.67129651]
[1673674730114,0.11720323,20876.0,20875.0,0.07892965]
[1673674731107,0.11720323,20876.0,20874.0,0.23909482]
[1673674731108,1.47523923,20876.0,20874.0,0.045]
[1673674731351,0.1284,20875.0,20873.0,0.1737696]
[1673674731599,0.1284,20874.0,20873.0,0.1737696]
[1673674731846,0.2284,20874.0,20873.0,0.19114656]
[1673674732087,0.5284,20874.0,20873.0,0.19114656]
[1673674732587,1.007464,20874.0,20873.0,0.30914656]
[1673674733072,1.613928,20874.0,20873.0,0.30914656]
[1673674733324,1.404928,20874.0,20873.0,0.13537696]
[1673674733579,0.1,20874.0,20873.0,0.51047213]
[1673674733817,0.579063,20875.0,20873.0,0.31974618]
[1673674734088,0.479063,20875.0,20874.0,0.05104721]
[1673674734322,0.5838815,20877.0,20874.0,0.05104721]
[1673674734323,0.479003,20877.0,20874.0,0.05104721]
[1673674734581,0.479003,20877.0,20875.0,0.01690472]
[1673674734826,0.479003,20877.0,20875.0,0.01674031]
[1673674735323,0.76124216,20878.0,20875.0,0.01674031]
[1673674735553,0.76124216,20878.0,20875.0,0.20746626]
[1673674735803,0.75629,20878.0,20876.0,0.66792764]
[1673674736046,0.00503032,20880.0,20877.0,0.54566848]
[1673674736295,0.606001,20882.0,20878.0,0.16623289]
[1673674736609,0.61085149,20882.0,20879.0,0.19072595]
[1673674736856,0.00507091,20881.0,20880.0,0.03569588]
[1673674737352,0.00507091,20881.0,20878.0,0.16623289]
[1673674737898,0.1271,20882.0,20878.0,0.64343458]
[1673674738156,0.1271,20882.0,20878.0,1.43113353]
[1673674738401,0.1283,20883.0,20879.0,0.66798764]
[1673674738669,0.01553441,20884.0,20880.0,1.7404677]
[1673674738901,0.01553441,20884.0,20882.0,0.1]
[1673674739160,0.01553441,20884.0,20882.0,0.29072595]
[1673674739376,0.01553441,20884.0,20882.0,0.1]
[1673674739615,0.01553441,20884.0,20883.0,0.10561037]
[1673674740637,0.01553441,20884.0,20883.0,0.10660936]
[1673674740879,0.01553441,20884.0,20883.0,0.10561037]
[1673674741138,0.01553441,20884.0,20883.0,0.77353801]
[1673674741391,0.01740993,20885.0,20884.0,0.2252418]
[1673674741635,0.01614122,20889.0,20885.0,0.1]
[1673674741874,0.01599212,20891.0,20886.0,1.62549764]
[1673674742123,0.01599212,20891.0,20887.0,0.76792764]
[1673674742367,0.14168084,20895.0,20888.0,2.24037433]
[1673674742613,0.0049723,20896.0,20888.0,2.24037433]
[1673674742614,0.0049723,20896.0,20890.0,0.14241893]
[1673674742851,0.0049723,20896.0,20891.0,1.62525164]
[1673674743101,0.0049723,20896.0,20892.0,0.76792764]
[1673674743343,0.00269524,20894.0,20892.0,4.57720169]
[1673674743576,0.23268084,20898.0,20893.0,0.47410217]
[1673674743577,0.478542,20897.0,20893.0,0.47410217]
[1673674743829,0.1284,20896.0,20894.0,0.19072595]
[1673674744077,0.478473,20900.0,20894.0,0.76792764]
[1673674744401,0.918278,20901.0,20894.0,0.76792764]
[1673674744402,0.2792,20901.0,20895.0,0.82653019]
[1673674744648,0.42485526,20903.0,20896.0,0.87614066]
[1673674744907,0.42485526,20903.0,20897.0,0.66792764]
[1673674745159,0.1273,20901.0,20898.0,0.19072595]
[1673674745463,0.41985526,20903.0,20897.0,0.47720169]
[1673674745708,0.41985526,20903.0,20898.0,0.25926742]
[1673674745709,0.1277,20901.0,20898.0,0.25926742]
[1673674745962,0.1277,20901.0,20898.0,0.06854147]
[1673674746725,0.0277,20901.0,20898.0,0.06854147]
[1673674746967,0.0277,20901.0,20899.0,0.24579958]
[1673674747478,0.54825526,20903.0,20899.0,0.24579958]
[1673674747741,0.54825526,20903.0,20899.0,0.43652553]
[1673674747971,0.54825526,20903.0,20899.0,0.05457432]
[1673674748227,0.54825526,20903.0,20900.0,0.03231493]
[1673674748228,0.2191,20901.0,20900.0,0.03231493]
[1673674748492,0.2191,20901.0,20896.0,0.00019]
[1673674748749,0.1284,20899.0,20897.0,0.66792764]
[1673674749015,0.67620376,20904.0,20899.0,0.16982531]
[1673674749272,0.628384,20904.0,20900.0,0.26542865]
[1673674749509,0.623384,20904.0,20901.0,0.33796931]
[1673674749755,0.145,20904.0,20902.0,0.19072595]
[1673674750017,0.62554789,20907.0,20903.0,0.1]
[1673674750295,0.62554789,20907.0,20904.0,0.21979854]
[1673674750588,0.62554789,20907.0,20905.0,0.19072595]
[1673674750589,0.01961689,20907.0,20905.0,0.19072595]
[1673674750833,0.01961689,20907.0,20906.0,0.1]
[1673674751591,0.01961689,20907.0,20904.0,0.02907259]
[1673674751894,0.478204,20912.0,20907.0,0.1]
[1673674752092,0.01961689,20908.0,20907.0,0.18170391]
[1673674752345,0.01961689,20908.0,20904.0,4.22567297]
[1673674752346,0.478285,20908.0,20904.0,4.22567297]
[1673674752604,0.478285,20908.0,20904.0,0.22567297]
[1673674752854,0.478285,20908.0,20905.0,0.14553043]
[1673674753094,0.606385,20908.0,20905.0,0.14553043]
[1673674753352,0.756623,20911.0,20906.0,0.66824051]
[1673674753604,0.756623,20911.0,20908.0,0.16065699]
[1673674753605,0.628223,20911.0,20908.0,0.16065699]
[1673674753855,0.628223,20911.0,20909.0,0.19072595]
[1673674754120,0.1273,20914.0,20910.0,0.22586424]
[1673674754385,0.21106,20916.0,20911.0,0.19072595]
[1673674754386,0.478116,20916.0,20911.0,0.19072595]
[1673674754853,0.1277,20912.0,20911.0,0.19072595]
[1673674755103,1.405091,20912.0,20910.0,0.03513829]
[1673674755352,1.405091,20912.0,20907.0,0.15489748]
[1673674755353,0.1283,20911.0,20907.0,0.19502605]
[1673674755603,0.04028381,20911.0,20909.0,0.19231734]
[1673674755849,0.1271,20912.0,20910.0,0.0669519]
[1673674755850,0.578203,20912.0,20910.0,0.0669519]
[1673674756098,0.4281,20911.0,20907.0,0.00019]
[1673674756343,0.36128681,20910.0,20907.0,0.00019]
[1673674756603,0.1273,20908.0,20907.0,0.00019]
[1673674756856,0.548303,20908.0,20907.0,0.00019]
[1673674757107,0.848303,20908.0,20907.0,0.00019]
[1673674757349,0.848303,20908.0,20904.0,0.19521922]
[1673674757636,0.1284,20906.0,20905.0,0.01952192]
[1673674757897,0.1284,20906.0,20903.0,0.19474667]
[1673674758143,0.478354,20905.0,20903.0,0.19474667]
[1673674758650,0.04028381,20904.0,20900.0,5.0]
[1673674758899,0.04028381,20903.0,20900.0,5.0]
[1673674759165,0.04028381,20902.0,20901.0,0.18709834]
[1673674759473,0.478423,20902.0,20901.0,1.0]
[1673674759694,0.91870681,20902.0,20901.0,1.0]
[1673674759943,0.91870681,20902.0,20899.0,0.16539315]
[1673674759944,1.199426,20902.0,20899.0,0.16539315]
[1673674760183,0.514371,20901.0,20898.0,0.00019]
[1673674760439,0.956936,20900.0,20898.0,0.3115906]
[1673674760687,0.3,20899.0,20898.0,0.117599]
[1673674760929,0.3,20899.0,20898.0,0.00019]
[1673674760930,1.099494,20899.0,20898.0,0.00019]
[1673674761164,0.778491,20899.0,20898.0,0.00019]
[1673674761427,0.778491,20899.0,20897.0,0.19789444]
[1673674761678,0.906891,20899.0,20897.0,0.19789444]
[1673674761910,0.906891,20899.0,20893.0,1.1739]
[1673674761911,0.449403,20898.0,20893.0,1.1739]
[1673674762172,0.449403,20898.0,20887.0,0.478754]
[1673674762173,0.1273,20896.0,20887.0,0.478754]
[1673674762421,0.16778381,20895.0,20894.0,0.1449187]
[1673674762651,0.1,20894.0,20889.0,1.61680169]
[1673674762898,0.04028381,20893.0,20890.0,0.63888186]
[1673674763155,0.47854,20897.0,20891.0,0.47720169]
[1673674763386,0.957096,20897.0,20892.0,0.97968413]
[1673674763661,0.957096,20897.0,20893.0,0.19072595]
[1673674763901,0.957096,20897.0,20892.0,0.78895818]
[1673674764133,0.478508,20899.0,20893.0,0.478623]
[1673674764366,0.99728281,20899.0,20894.0,0.60395981]
[1673674764605,0.3,20898.0,20895.0,0.47720169]
[1673674764856,0.478526,20898.0,20896.0,0.47720169]
[1673674765114,0.478508,20899.0,20897.0,0.09544034]
[1673674765354,0.478508,20899.0,20896.0,0.66792764]
[1673674765355,0.478508,20899.0,20898.0,0.174688]
[1673674766356,0.478508,20899.0,20898.0,0.17568627]
[1673674766604,0.478485,20900.0,20898.0,0.00099827]
[1673674766852,0.478448,20901.0,20898.0,0.1879016]
[1673674767175,0.478448,20901.0,20899.0,0.01879016]
[1673674767913,0.478448,20901.0,20900.0,0.16470892]
[1673674768415,0.956894,20901.0,20900.0,0.16470892]
[1673674768646,1.29717781,20901.0,20896.0,0.17855392]
[1673674768902,0.04028381,20900.0,20898.0,0.17740231]
[1673674769151,0.956982,20899.0,20897.0,0.13181539]
[1673674769416,0.478491,20899.0,20897.0,0.60901708]
[1673674769653,0.478491,20899.0,20898.0,0.06090171]
[1673674769908,0.478478,20900.0,20899.0,0.19862067]
[1673674770143,0.478478,20900.0,20899.0,0.16108049]
[1673674770391,0.478478,20900.0,20899.0,0.14286472]
[1673674770643,1.256946,20900.0,20897.0,0.13181539]
[1673674770905,0.04028381,20899.0,20898.0,0.18358452]